Cogmind - Beta 11.1 @@@ ROGUE MODE // 2022.06.12 @ 00:14:30 Player: Jezoensis Result: Destroyed by S-43 Plague with Heavy Machine Gun Performance ------------- Evolutions (7) 3500 Regions Visited (10) 2000 Robots Destroyed (1) 5 Value Destroyed (45) 45 Prototype IDs (2) 40 Alien Tech Used (0) 0 Bonus (1382) 1382 TOTAL SCORE: 6972 Bonus ------- Pacifist 1325 Follower Combat Kills 57 Cogmind --------- Core Integrity 0/1300 Matter 4/300 Energy 100/100 System Corruption 1% Temperature Cool (0) Movement Core (50) Location -3/Research Parts ------- > --- POWER (1) -------- (None) > --- PROPULSION (6) --- (None) > --- UTILITY (12) ----- (None) > --- WEAPON (2) ------- (None) > --- INVENTORY (5) ---- Impulse Thruster Impulse Thruster Array Impulse Thruster Array Peak State ------------ > --- POWER ------------ Light Antimatter Reactor > --- PROPULSION ------- Gyrokinetic Inverter Gyrokinetic Inverter Improved Gyrokinetic Inverter Improved Gyrokinetic Inverter Improved Gyrokinetic Inverter Improved Gyrokinetic Inverter > --- UTILITY ---------- Energy Well Energy Well Energy Well Energy Well Energy Well Improved Terrain Scan Processor Advanced Reaction Control System > --- WEAPON ----------- (None) > --- INVENTORY -------- Micro Nuclear Core Gyrokinetic Inverter Heavy Phase Cannon [Rating: 83] Favorites ----------- Power Micro Nuclear Core Power Core Micro Nuclear Core Reactor Light Antimatter Reactor Propulsion Improved Gyrokinetic Inverter Treads Light Treads Hover Unit Improved Gyrokinetic Inverter Flight Unit Biomechanical Wings Utility Improved Terrain Scan Processor Device Terrain Scanner Storage Compact Battery Processor Improved Terrain Scan Processor Weapon Power Maul Energy Cannon Heavy Phase Cannon Impact Weapon Power Maul Build | -11 -10 -9 -8 -7 -6 -5 -5 -5 -4 -3 ------- Run | Scr Mat Mat Mat Fac Fac Fac Upp Upp Fac Res Slots Evolved 14 | . . 2 2 2 2 2 . . 2 2 Power . | . . . . . . . . . . . Propulsion 4 | . . 1 1 1 1 . . . . . Utility 10 | . . 1 1 1 1 2 . . 2 2 Weapon . | . . . . . . . . . . . Parts Attached 45 | 2 1 . 1 3 13 6 2 . 15 2 Power 3 | . . . . . . . 1 . 2 . Engine . | . . . . . . . . . . . Core 2 | . . . . . . . 1 . 1 . Reactor 1 | . . . . . . . . . 1 . Propulsion 18 | 2 . . . 2 3 3 . . 7 1 Treads 4 | 2 . . . . 2 . . . . . Leg . | . . . . . . . . . . . Wheel . | . . . . . . . . . . . Hover 8 | . . . . 1 . . . . 7 . Flight 6 | . . . . 1 1 3 . . . 1 Utility 21 | . 1 . 1 1 8 2 1 . 6 1 Device 10 | . 1 . . 1 3 2 1 . 1 1 Storage 6 | . . . 1 . . . . . 5 . Processor 5 | . . . . . 5 . . . . . Hackware . | . . . . . . . . . . . Protection . | . . . . . . . . . . . Artifact . | . . . . . . . . . . . Weapon 3 | . . . . . 2 1 . . . . Energy Gun . | . . . . . . . . . . . Energy Cannon 1 | . . . . . . 1 . . . . Ballistic Gun . | . . . . . . . . . . . Ballistic Cannon . | . . . . . . . . . . . Launcher . | . . . . . . . . . . . Special Weapon . | . . . . . . . . . . . Impact Weapon 2 | . . . . . 2 . . . . . Slashing Weapon . | . . . . . . . . . . . Piercing Weapon . | . . . . . . . . . . . Special Melee Weapon . | . . . . . . . . . . . Unidentified Prototypes 2 | . . . . 1 . 1 . . . . Parts Lost 22 | . . . . 4 6 5 . . 6 1 Power 2 | . . . . . . . . . 2 . Propulsion 9 | . . . . 3 2 1 . . 3 . Utility 10 | . . . . 1 4 3 . . 1 1 Weapon 1 | . . . . . . 1 . . . . Highest Loss Streak 5 | . . . . 3 3 5 . . 3 1 To Critical Strikes 1 | . . . . . . . . . 1 . Average Slot Usage (%) 28 | . 32 33 34 27 37 26 34 35 44 2 Treads 3 | . 28 22 18 4 1 . . . . . Hover 2 | . . . . 1 . . . . 23 . Flight 3 | . . . . 4 4 2 11 11 1 1 Device 5 | . 4 11 9 8 9 . 4 5 3 . Storage 2 | . . . 7 7 2 . . . 4 . Processor 7 | . . . . . 14 19 11 11 6 . Impact Weapon 1 | . . . . . 2 2 . . . . Naked Turns 143 | . . . . . . . . . 10 133 Heaviest Build 35 | . 1 1 2 5 6 3 12 12 35 4 Greatest Support 71 | 3 3 3 3 6 6 12 12 12 71 13 Greatest Overweight (x) . | . . . . . . . . . . . Average Overweight (x) . | . . . . . . . . . . . Largest Inventory Capacity 5 | 5 5 5 5 5 5 5 5 5 5 5 Average Capacity 5 | 5 5 5 5 5 5 5 5 5 5 5 Most Carried 5 | . . . 1 4 5 5 4 1 3 5 Average Carried 3 | . . . . 2 4 4 1 1 1 4 Final Capacity 5 | 5 5 5 5 5 5 5 5 5 5 5 Final Carried 5 | . . . 1 4 3 4 1 1 2 5 Class Distribution -------------------- 100% | Mutant Dominant Class ---------------- Mutant | -10/Materials Mutant | -9/Materials Mutant | -8/Materials Mutant | -7/Factory Mutant | -6/Factory Mutant | -5/Factory Mutant | -5/Upper Caves Mutant | -5/Upper Caves Mutant | -4/Factory Mutant | -3/Research Resources | -11 -10 -9 -8 -7 -6 -5 -5 -5 -4 -3 ----------- Run | Scr Mat Mat Mat Fac Fac Fac Upp Upp Fac Res Matter Collected 224 | 124 . . . . . . 5 21 74 . Remotely . | . . . . . . . . . . . Salvage Created 89 | . . . . . 89 . . . . . Parts 3 | . . . . . 3 . . . . . Haulers Intercepted 1 | . . . . . 1 . . . . . Recyclers Shooed . | . . . . . . . . . . . Parts Field Recycled . | . . . . . . . . . . . Retrieved Matter . | . . . . . . . . . . . Parts Self-Destructed . | . . . . . . . . . . . Prevented . | . . . . . . . . . . . Kills | -11 -10 -9 -8 -7 -6 -5 -5 -5 -4 -3 ------- Run | Scr Mat Mat Mat Fac Fac Fac Upp Upp Fac Res Combat Hostiles Destroyed . | . . . . . . . . . . . Classes Destroyed 1 | . . . . . 1 . . . . . Hauler 1 | . . . . . 1 . . . . . Best Kill Streak 1 | . . . . . 1 . . . . . Combat Bots Only . | . . . . . . . . . . . Max Kills in Single Turn 1 | . . . . . 1 . . . . . Gunslinging . | . . . . . . . . . . . Exploded . | . . . . . . . . . . . Melee . | . . . . . . . . . . . Uniques/NPCs Destroyed . | . . . . . . . . . . . Combat | -11 -10 -9 -8 -7 -6 -5 -5 -5 -4 -3 -------- Run | Scr Mat Mat Mat Fac Fac Fac Upp Upp Fac Res Damage Taken 4782 | . . 88 144 490 680 1024 171 . 729 1456 Core 3269 | . . 22 37 235 416 808 124 . 310 1317 Absorbed by Shields . | . . . . . . . . . . . Core Remaining (%) 72 | 100 100 94 93 66 51 . . 6 73 . Volleys Fired 1 | . . . . . . 1 . . . . Largest 1 | . . . . . . 1 . . . . Hottest 90 | . . . . . . 90 . . . . Shots Fired 1 | . . . . . . 1 . . . . Gun . | . . . . . . . . . . . Cannon 1 | . . . . . . 1 . . . . Launcher . | . . . . . . . . . . . Special . | . . . . . . . . . . . Kinetic . | . . . . . . . . . . . Thermal 1 | . . . . . . 1 . . . . Explosive . | . . . . . . . . . . . Electromagnetic . | . . . . . . . . . . . Robot Hit Streak . | . . . . . . . . . . . Robot Miss Streak . | . . . . . . . . . . . Penetration Max . | . . . . . . . . . . . Secondary Targets . | . . . . . . . . . . . Shots Hit Robots 1 | . . . . . 1 . . . . . Core Hits 2 | . . . . . 1 . . . . 1 Critical Kills . | . . . . . . . . . . . Critical Parts Destroyed . | . . . . . . . . . . . Critical Strikes . | . . . . . . . . . . . Melee Attacks 3 | . . . . . 3 . . . . . Impact 3 | . . . . . 3 . . . . . Slashing . | . . . . . . . . . . . Piercing . | . . . . . . . . . . . Sneak Attacks 1 | . . . . . 1 . . . . . Combat Hostiles . | . . . . . . . . . . . Follow-up Attacks . | . . . . . . . . . . . Damage Inflicted 121 | . . . . 3 101 14 . . . 3 Guns . | . . . . . . . . . . . Cannons . | . . . . . . . . . . . Explosions . | . . . . . . . . . . . Melee 101 | . . . . . 101 . . . . . Ramming 20 | . . . . 3 . 14 . . . 3 Kinetic . | . . . . . . . . . . . Thermal . | . . . . . . . . . . . Explosive . | . . . . . . . . . . . Electromagnetic . | . . . . . . . . . . . Impact 101 | . . . . . 101 . . . . . Slashing . | . . . . . . . . . . . Piercing . | . . . . . . . . . . . Highest Corruption 1 | . . . 1 . 1 . . . . 1 Average Corruption 1 | . . . 1 . 1 . . . . 1 Corruption Purged . | . . . . . . . . . . . Corruption Blocked . | . . . . . . . . . . . Effects 3 | . . . . . . . . . . 3 Matter Fused 1 | . . . . . . . . . . 1 Parts Rejected 1 | . . . . . . . . . . 1 Data Loss (minor) 1 | . . . . . . . . . . 1 Overload Shots . | . . . . . . . . . . . Overflow Damage . | . . . . . . . . . . . Projectiles . | . . . . . . . . . . . Explosions . | . . . . . . . . . . . Melee . | . . . . . . . . . . . Knockbacks . | . . . . . . . . . . . Impact . | . . . . . . . . . . . Kinetic . | . . . . . . . . . . . Secondary . | . . . . . . . . . . . Self-Inflicted Damage 8 | . . . . 1 . 6 . . . 1 Shots . | . . . . . . . . . . . Rammed 7 | . . . 1 2 . 2 . . . 2 Targets Rammed 7 | . . . 1 2 . 2 . . . 2 Kicked . | . . . . . . . . . . . Crushed . | . . . . . . . . . . . Highest Temperature 265 | . . . . . . 10 . . 265 . Average Temperature 173 | . . . . . . 7 . . 177 . Received Heat Transfer 612 | . . 30 45 42 237 45 30 . 45 138 Siege Activations . | . . . . . . . . . . . Robots Corrupted . | . . . . . . . . . . . Combat Hostiles . | . . . . . . . . . . . Parts Fried . | . . . . . . . . . . . Impact Corruptions . | . . . . . . . . . . . Robots Melted . | . . . . . . . . . . . Combat Hostiles . | . . . . . . . . . . . Parts Melted . | . . . . . . . . . . . Heat Transferred . | . . . . . . . . . . . Parts Sabotaged . | . . . . . . . . . . . Parts Stolen . | . . . . . . . . . . . Parts Stripped . | . . . . . . . . . . . Power Chain Reactions . | . . . . . . . . . . . Missiles Intercepted . | . . . . . . . . . . . Alert | -11 -10 -9 -8 -7 -6 -5 -5 -5 -4 -3 ------- Run | Scr Mat Mat Mat Fac Fac Fac Upp Upp Fac Res Peak Influence 546 | . 29 90 42 190 335 429 . . 265 546 Initial 170 | . . 11 37 18 93 149 . . 170 91 Average 186 | . 22 44 38 79 156 245 . . 199 341 Maximum Alert Level 2 | . . . . . 1 2 . . 1 2 Low Security (%) 66 | 100 100 100 100 100 74 58 . . 59 27 Level 1 20 | . . . . . 25 20 . . 40 24 Level 2 13 | . . . . . . 21 . . . 48 Level 3 . | . . . . . . . . . . . Level 4 . | . . . . . . . . . . . Level 5 . | . . . . . . . . . . . High Security . | . . . . . . . . . . . Max Security . | . . . . . . . . . . . Squads Dispatched 18 | . . 2 1 2 5 2 . . 1 5 Investigation 14 | . . 2 1 1 5 2 . . 1 2 Extermination . | . . . . . . . . . . . Reinforcement 4 | . . . . 1 . . . . . 3 Assault . | . . . . . . . . . . . Garrison . | . . . . . . . . . . . Intercept . | . . . . . . . . . . . Searches Triggered . | . . . . . . . . . . . Construction Impeded . | . . . . . . . . . . . Haulers Reinforced . | . . . . . . . . . . . Active Scanning Responses . | . . . . . . . . . . . Cargo Convoy Interrupts . | . . . . . . . . . . . Stealth | -11 -10 -9 -8 -7 -6 -5 -5 -5 -4 -3 --------- Run | Scr Mat Mat Mat Fac Fac Fac Upp Upp Fac Res Distress Signals 7 | . . . . . 1 1 . . 3 2 Communications Jammed . | . . . . . . . . . . . Distress Signals . | . . . . . . . . . . . Times Spotted 150 | . 2 6 4 15 29 32 8 . 17 37 Peak Tracking Total 16 | . 2 6 4 7 13 14 5 . 8 16 Tactical Retreats 23 | . . 1 . 3 5 3 2 . 3 6 Traps | -11 -10 -9 -8 -7 -6 -5 -5 -5 -4 -3 ------- Run | Scr Mat Mat Mat Fac Fac Fac Upp Upp Fac Res Traps Triggered 3 | . . . . . 1 1 . . . 1 Indirectly . | . . . . . . . . . . . Trap Hack Attempts . | . . . . . . . . . . . Triggered . | . . . . . . . . . . . Disarmed . | . . . . . . . . . . . Reprogrammed . | . . . . . . . . . . . Reused . | . . . . . . . . . . . Traps Extracted . | . . . . . . . . . . . Installed . | . . . . . . . . . . . Triggered 1 | . . . . . . . 1 . . . Machines | -11 -10 -9 -8 -7 -6 -5 -5 -5 -4 -3 ---------- Run | Scr Mat Mat Mat Fac Fac Fac Upp Upp Fac Res Machines Disabled 3 | . . . . . . . . . 3 . Max in Single Turn . | . . . . . . . . . . . Machines Sabotaged . | . . . . . . . . . . . Garrisons Compromised 1 | . . . . . . . . . 1 . Overloaded Fab Kills 1 | . . . . . . 1 . . . . Hacking | -11 -10 -9 -8 -7 -6 -5 -5 -5 -4 -3 --------- Run | Scr Mat Mat Mat Fac Fac Fac Upp Upp Fac Res Machines Accessed 18 | . 2 2 1 2 5 2 . . 1 3 Terminals 15 | . 2 2 1 2 4 . . . 1 3 Fabricators 3 | . . . . . 1 2 . . . . Repair Stations . | . . . . . . . . . . . Recycling Units . | . . . . . . . . . . . Scanalyzers . | . . . . . . . . . . . Garrison Access . | . . . . . . . . . . . Total Hacks 61 | . 12 7 3 5 16 4 . . 4 10 Successful 26 | . 8 5 2 3 2 2 . . 2 2 Failed 35 | . 4 2 1 2 14 2 . . 2 8 Catastrophic 9 | . 1 . . . 4 . . . . 4 Database Lockouts . | . . . . . . . . . . . Manual 43 | . 12 4 3 3 14 4 . . 3 . Terminals 54 | . 12 7 3 5 13 . . . 4 10 Fabricators 7 | . . . . . 3 4 . . . . Repair Stations . | . . . . . . . . . . . Recycling Units . | . . . . . . . . . . . Scanalyzers . | . . . . . . . . . . . Garrison Access . | . . . . . . . . . . . Terminal Hacks 13 | . 3 2 1 2 1 . . . 2 2 Robot Analysis 1 | . 1 . . . . . . . . . Level Access Points 1 | . . . . . 1 . . . . . Branch Access Points 1 | . . . . . . . . . . 1 Terminal Index 3 | . 1 . . 1 . . . . . 1 Locate Traps 1 | . . . . . . . . . 1 . Registered Components 1 | . . . . 1 . . . . . . Zone Layout 5 | . 1 2 1 . . . . . 1 . Fabricator Hacks . | . . . . . . . . . . . Repair Station Hacks . | . . . . . . . . . . . Recycling Unit Hacks . | . . . . . . . . . . . Scanalyzer . | . . . . . . . . . . . Garrison Access Hacks . | . . . . . . . . . . . Unauthorized Hacks 13 | . 5 3 1 1 1 2 . . . . Terminals 11 | . 5 3 1 1 1 . . . . . Track 2 | . 1 1 . . . . . . . . Botnet 6 | . 2 1 1 1 1 . . . . . Disrupt 1 | . . 1 . . . . . . . . Operators 2 | . 2 . . . . . . . . . Fabricators 2 | . . . . . . 2 . . . . Fabnet 1 | . . . . . . 1 . . . . Overload 1 | . . . . . . 1 . . . . Repair Stations . | . . . . . . . . . . . Recycling Units . | . . . . . . . . . . . Scanalyzers . | . . . . . . . . . . . Garrison Access . | . . . . . . . . . . . Data Cores Recovered . | . . . . . . . . . . . Used . | . . . . . . . . . . . Hacking Detections 17 | . 2 2 1 2 5 1 . . 1 3 Full Trace Events 12 | . . 2 1 1 5 . . . 1 2 Feedback Events 3 | . . . 1 . 1 . . . . 1 Corruption 3 | . . . 1 . 1 . . . . 1 Feedback Blocked . | . . . . . . . . . . . Robot Schematics Acquired . | . . . . . . . . . . . Robots Built . | . . . . . . . . . . . Authchips . | . . . . . . . . . . . Time . | . . . . . . . . . . . Total Robot Build Rating . | . . . . . . . . . . . Part Schematics Acquired . | . . . . . . . . . . . Parts Built . | . . . . . . . . . . . Authchips . | . . . . . . . . . . . Time . | . . . . . . . . . . . Total Part Build Rating . | . . . . . . . . . . . Parts Repaired . | . . . . . . . . . . . Time . | . . . . . . . . . . . Parts Recycled . | . . . . . . . . . . . Recycled Matter . | . . . . . . . . . . . Retrieved Matter . | . . . . . . . . . . . Retrieved Components . | . . . . . . . . . . . Parts Scanalyzed . | . . . . . . . . . . . Part Schematics Acquired . | . . . . . . . . . . . Parts Damaged . | . . . . . . . . . . . Bothacking | -11 -10 -9 -8 -7 -6 -5 -5 -5 -4 -3 ------------ Run | Scr Mat Mat Mat Fac Fac Fac Upp Upp Fac Res Used RIF Installer . | . . . . . . . . . . . Robots Hacked 1 | . . . . . . . . . 1 . Non-combat . | . . . . . . . . . . . Combat 1 | . . . . . . . . . 1 . Robot Hacks Applied . | . . . . . . . . . . . Relay Couplers Released . | . . . . . . . . . . . Fabnet Peak Effective % 3 | . . . . . . . . . 3 1 Autooverrided 1 | . . . . . . . . . 1 . Robots Rewired . | . . . . . . . . . . . Allies Hacked . | . . . . . . . . . . . Hacks Repelled . | . . . . . . . . . . . Allies | -11 -10 -9 -8 -7 -6 -5 -5 -5 -4 -3 -------- Run | Scr Mat Mat Mat Fac Fac Fac Upp Upp Fac Res Total Allies 13 | . . . . . . . . . 13 . Largest Group 8 | . . . . . . . . . 8 . Highest-Rated Group 263 | . . . . . . . . . 263 . Highest-Rated Ally 46 | . . . . . . . . . 46 . Total Orders 10 | . . . . . . . 7 2 1 . EXPLORE 9 | . . . . . . . 6 2 1 . RETURN 1 | . . . . . . . 1 . . . Ally Attacks 45 | . . . . . . . . . 45 . Total Damage 827 | . . . . . . . . . 827 . Kills 3 | . . . . . . . . . 3 . Allies Corrupted . | . . . . . . . . . . . Allies Melted . | . . . . . . . . . . . Intel | -11 -10 -9 -8 -7 -6 -5 -5 -5 -4 -3 ------- Run | Scr Mat Mat Mat Fac Fac Fac Upp Upp Fac Res Robot Analysis Total 1 | . 1 . . . . . . . . . Derelict Logs Recovered 1 | . . . . . . . . 1 . . Drone Launches 4 | . . . . . . . 4 . . . Drone Recoveries . | . . . . . . . . . . . Exploration | -11 -10 -9 -8 -7 -6 -5 -5 -5 -4 -3 ------------- Run | Scr Mat Mat Mat Fac Fac Fac Upp Upp Fac Res Turns Passed 1216 | 14 30 43 67 139 304 134 95 6 141 243 Spaces Moved 2426 | 23 56 86 127 301 581 250 247 16 223 516 Core 1033 | 23 56 86 127 78 187 193 . . 22 261 Treads . | . . . . . . . . . . . Legs . | . . . . . . . . . . . Wheels . | . . . . . . . . . . . Hover 149 | . . . . . . . . . 149 . Flight 1244 | . . . . 223 394 57 247 16 52 255 Fastest Speed 37 | 50 50 50 50 40 40 37 37 37 37 40 Average Speed 44 | 50 50 50 50 42 43 47 37 37 52 45 Slowest Speed 70 | 50 50 50 50 50 50 50 37 37 70 50 Overloaded Moves . | . . . . . . . . . . . Propulsion Burnouts . | . . . . . . . . . . . Robots Hopped 22 | . . . . 3 2 1 1 1 2 12 Cave-ins Triggered . | . . . . . . . . . . . Exploration Rate (%) 19 | 4 18 13 16 13 20 13 69 6 10 27 Regions Visited 10 Branch Regions 2 Pre-discovered Areas . | . . . . . . . . . . . Known Exits Taken 5 | . . . . . 1 1 1 1 1 . Unknown Exits Taken 5 | 1 1 1 1 1 . . . . . . Scrap Searched 1 | . . . . . . . . 1 . . Spaces Dug 3 | . . . . . 2 1 . . . . Terrain Destroyed 3 | . . . . . 2 1 . . . . Melee 2 | . . . . . 2 . . . . . Projectile 1 | . . . . . . 1 . . . . AOE . | . . . . . . . . . . . Terrain Rammed . | . . . . . . . . . . . Walls Destroyed . | . . . . . . . . . . . Machines Disabled . | . . . . . . . . . . . Actions | -11 -10 -9 -8 -7 -6 -5 -5 -5 -4 -3 --------- Run | Scr Mat Mat Mat Fac Fac Fac Upp Upp Fac Res Total 2502 | 24 56 85 129 307 624 261 249 14 239 514 Wait 4 | . . . . 1 2 1 . . . . Move 2374 | 22 55 85 126 295 576 247 244 13 218 493 Hop 20 | . . . . 2 2 1 1 1 2 11 Pick Up 16 | . . . 1 4 4 1 . . 2 4 Fast Attach 33 | 2 1 . 1 2 9 4 . . 13 1 Attach 10 | . . . . 1 3 2 2 . 1 1 Detach 6 | . . . . . 3 2 . . 1 . Swap 2 | . . . . . 1 . . . 1 . Drop 10 | . . . . . 6 . 1 . 1 2 Fire 1 | . . . . . . 1 . . . . Melee 3 | . . . . . 3 . . . . . Ram 7 | . . . 1 2 . 2 . . . 2 Kick . | . . . . . . . . . . . Crush . | . . . . . . . . . . . Escape Stasis 15 | . . . . . 15 . . . . . Rewire . | . . . . . . . . . . . Trap . | . . . . . . . . . . . Miscellaneous 1 | . . . . . . . 1 . . . Route ------- -11/Scrapyard -10/Materials -9/Materials -8/Materials -7/Factory -6/Factory (discovered 4 exits: *Fac x4) -5/Factory -5/Upper Caves -5/Upper Caves -4/Factory -3/Research (discovered 3 exits: Arm / Qua x2) History --------- Turn | Location | Event 2 | -11/Scrapyard | Met Revision 17 10 | -11/Scrapyard | Discovered new exit (range 12) 15 | -11/Scrapyard | Entered Materials 33 | -10/Materials | Discovered new exit (range 12) 45 | -10/Materials | Entered another Materials area 45 | -9/Materials | Evolved 2 slots: Propulsion x1, Utility x1 82 | -9/Materials | Discovered new exit (range 13) 88 | -9/Materials | Entered another Materials area 88 | -8/Materials | Evolved 2 slots: Propulsion x1, Utility x1 140 | -8/Materials | Discovered new exit (range 6) 155 | -8/Materials | Entered Factory 155 | -7/Factory | Evolved 2 slots: Propulsion x1, Utility x1 231 | -7/Factory | Lost 3 parts (3n) 289 | -7/Factory | Discovered new exit (range 15) 294 | -7/Factory | Entered another Factory area 294 | -6/Factory | Evolved 2 slots: Propulsion x1, Utility x1 302 | -6/Factory | Build established: Mutant 557 | -6/Factory | Identified exit to Factory 598 | -6/Factory | Entered another Factory area 598 | -5/Factory | Evolved 2 slots: Utility x2 618 | -5/Factory | Lost 3 parts (1n2u) 640 | -5/Factory | Discovered new exit (range 16) 647 | -5/Factory | Identified exit to Upper Caves 709 | -5/Factory | Core integrity fell below 50% 732 | -5/Factory | Core integrity fell below 20% 732 | -5/Factory | Entered Upper Caves 750 | -5/Upper Caves | Lost 5 parts (1n3u1w) 781 | -5/Upper Caves | Spotted B-75 Beast 819 | -5/Upper Caves | Discovered new exit (range 22) 827 | -5/Upper Caves | Identified exit to Upper Caves 827 | -5/Upper Caves | Entered another Upper Caves area 827 | -5/Upper Caves | Accompanied by 2 allies 831 | -5/Upper Caves | Discovered new exit (range 7) 832 | -5/Upper Caves | Learned location of 1 exit from Factory 833 | -5/Upper Caves | Identified exit to Factory 833 | -5/Upper Caves | Entered Factory 833 | -4/Factory | Accompanied by 1 ally 833 | -4/Factory | Evolved 2 slots: Utility x2 834 | -4/Factory | Identified exit to Research 911 | -4/Factory | Lost 3 parts (2n1u) 944 | -4/Factory | Spotted B-86 Titan 964 | -4/Factory | Released all parts (13) 974 | -4/Factory | Entered Research 974 | -3/Research | Evolved 2 slots: Utility x2 1141 | -3/Research | Identified exit to Armory 1141 | -3/Research | Identified exit to Quarantine 1150 | -3/Research | Spotted B-86 Titan 1154 | -3/Research | Core integrity fell below 50% 1198 | -3/Research | Core integrity fell below 20% 1217 | -3/Research | Destroyed by S-43 Plague with Heavy Machine Gun Last Messages --------------- >>Access(Branch) Found 3 branch access points: (115,29) Armory (104,50) Quarantine (191,121) Quarantine Map updated. 01176_ System corrupted: Component data lost. 01177_ O-32 Director sends out distress signal. 01177_ ALERT: Hostiles spotted, dispatching reinforcements to Terminal R017. 01183_ O-32 Director uses terminal to summon reinforcements. 01183_ ALERT: Hostiles spotted, dispatching reinforcements to Terminal R008. 01183_ O-32 Director locks terminal. 01195_ Slammed into S-43 Plague. 01196_ ALERT: Security rotation in progress. 01196_ Slammed into S-43 Plague. 01197_ Critical hit (Burn: +37). 01201_ System corrupted: Matter fused (-9). 01206_ Drone sends a signal. Map ----- +----------------------------------------------------+ | ?????###########+######### ""T"" ############### | | ?????# ! # / "" "" # # | | ?????# # ##### # # | | ?????# " # #???# * # # | | ?????# """" + #???# # # #### | | ?????# """" # #???# # # #??? | | ?????# """" # #???# #? # #??? | | ?????# """" # ###########+######+### #??? | | ?????# # #??? | | ?????# [ # +??? | | ?????########## #??? | | ??????????????##################+######+### #??? | | ???????????????????????????# #? # #??? | | ???????????????????????????# # # #??? | | ???????????????????????????#"" #!! = # #??? | | ???????????????????????????#"" +!! # ??? | | ???????????????????????????#"" # !# ?? | | ???????????????????????????#T [ # # ? | | ????????????###+############"" #?###### #### | | ???????????? ##"" #??????? #??? | | ???????????? ##"" #??????? #??? | | ??????????? ## #??????? #??? | | ???????????? / ## #??????? ??? | | ??????????????# #####"########+## ??? | | ??????????????# #???# ?? | | ??????????????# @##### #????????? | | ??????????????# #????????? | | ??????????????# """ #????????? | | ??????????????# """ #????????? | | ?????????????????? """ #????????? | | ?????????????????? ###+###### #????????? | | ???????????????? #????????? #????????? | | ???????????????? #?????????? #????????? | | ??????????????? """ #?????????? +????????? | | ??????????????? """ ???????????? #????????? | | ??????????????# """ ???????????? #????????? | | ??????????????? ??? ????????????? #????????? | | ???????????????????? k ???????????????????????? | | ??????????????????? ???????????????????????? | | ????????????????????"" s ???????????????????????? | | ?????????????????????? s ???????????????????????? | | ???????????????????????? ????????????????????????? | | ?????????????????????????????????????????????????? | | ?????????????????????????????????????????????????? | | ?????????????????????????????????????????????????? | | ?????????????????????????????????????????????????? | | ?????????????????????????????????????????????????? | | ?????????????????????????????????????????????????? | | ?????????????????????????????????????????????????? | | ?????????????????????????????????????????????????? | +----------------------------------------------------+ Best States ------------- Heat Dissipation 46 Energy Generation 21 Energy Capacity 1900 Matter Stores 204 Matter Capacity 300 Sight Range 16 Terrain Scan Range 14 Terrain Scan Density 210 ECM Strength 2 Evasion (%) 70 Melee Accuracy 8 Item Schematics ----------------- None Robot Schematics ------------------ None Fabricated ------------ Nothing Alien Tech Used ----------------- None Achievements -------------- None Challenges ------------ None Game ------ Seed GrenadeDeuteriumShifter Manual? 0 Play Time 00:42:59 Cumulative 684.4 hours Start 2022.06.11 @ 23:33:27 End 2022.06.12 @ 00:14:30 Sessions 1 Manual Loads 0 Difficulty Rogue Special Mode None Game No. 353 Rogue 226 Adventurer 125 Explorer 2 Win Type - Total 76 Types 65/4/4/1/1/0/0/0/1 Lore% 80 Gallery% 88 Achievement% 73 Wizard Run 0 Options --------- ASCII 0 Keyboard 1 Movement Numpad Keybinds 0 Fullscreen 1 Font 36/TerminusFine Map View 76x50 Tactical HUD 1 Map Filters NONE Filters NONE Steam 1 RUN: 44923ffd-87b1-4369-909b-454aeae73079